fUSD/lending_fUSD_20240726
["ID","MTS","AMOUNT","RATE_DAILY","PERIOD"]
[333254582,1721989833343,-800.0,0.000101,3]
[333254583,1721989833352,-1100.0,0.000102,3]
[333254584,1721989833362,-1300.0,0.000103,3]
[333254585,1721989833371,-200.0,0.000104,3]
[333254586,1721989833382,-318.82,0.00010468,2]
[333254587,1721989833391,-179.99,0.000105,2]
[333254588,1721989833400,-200.0,0.000105,3]
[333254589,1721989833409,-200.0,0.000106,3]
[333254590,1721989833419,-670.6119,0.000107,2]
[333254591,1721989833428,-2681.9773,0.000107,2]
[333254592,1721989833437,-200.0,0.000107,3]
[333254593,1721989833447,-150.0,0.00010733,2]
[333254594,1721989833456,-150.0,0.00010733,2]
[333254595,1721989833465,-150.0,0.00010734,2]
[333254596,1721989833475,-150.0,0.00010744,2]
[333254597,1721989833484,-150.0,0.00010746,2]
[333254598,1721989833494,-150.0,0.00010749,2]
[333254599,1721989833504,-150.0,0.00010755,2]
[333254600,1721989833513,-150.0,0.00010758,2]
[333254601,1721989833522,-150.0,0.00010772,2]
[333254602,1721989833531,-150.0,0.00010776,2]
[333254603,1721989833541,-33035.0,0.00010781,2]
[333254604,1721989833550,-150.0,0.00010783,2]
[333254605,1721989833559,-499.99,0.00010799,2]
[333254606,1721989833568,-1801.29,0.00010799,2]
[333254607,1721989833577,-176.49176034,0.00010799,2]
[333254608,1721989833586,-2044.8298,0.000108,2]
[333254609,1721989833595,-22591.4571,0.000108,2]
[333254610,1721989833605,-1000.0,0.000108,2]
[333254611,1721989833614,-245000.0,0.000108,2]
[333254612,1721989833623,-26730.243,0.000108,2]
[333254613,1721989833632,-800.0,0.000108,3]
[333254614,1721989833641,-150.0,0.00010803,2]
[333254615,1721989833650,-150.0,0.00010809,2]
[333254616,1721989833659,-150.0,0.00010819,2]
[333254617,1721989833668,-150.0,0.0001082,2]
[333254618,1721989833678,-150.0,0.00010821,2]
[333254619,1721989833688,-150.0,0.00010824,2]
[333254620,1721989833697,-150.0,0.00010824,2]
[333254621,1721989833707,-150.0,0.00010835,2]
[333254622,1721989833716,-150.0,0.0001084,2]
[333254623,1721989833726,-150.0,0.0001084,2]
[333254624,1721989833735,-150.0,0.00010847,2]
[333254625,1721989833746,-150.0,0.0001085,2]
[333254626,1721989833756,-150.0,0.00010852,2]
[333254627,1721989833765,-150.0,0.00010858,2]
[333254628,1721989833775,-150.0,0.00010861,2]
[333254629,1721989833784,-150.0,0.00010872,2]
[333254630,1721989833794,-150.0,0.00010877,2]
[333254631,1721989833803,-150.0,0.00010879,2]
[333254632,1721989833812,-3000.0,0.0001089,2]
[333254633,1721989833821,-150.0,0.00010894,2]
[333254634,1721989833830,-150.0,0.00010895,2]
[333254635,1721989833840,-198.91307263,0.00010899,2]
[333254636,1721989833849,-198.9130726,0.00010899,2]
[333254637,1721989833859,-198.9130726,0.00010899,2]
[333254638,1721989833868,-198.9130726,0.00010899,2]
[333254639,1721989833878,-198.9130726,0.00010899,2]
[333254640,1721989833887,-198.9130726,0.00010899,2]
[333254641,1721989833897,-198.9130726,0.00010899,2]
[333254642,1721989833908,-198.9130726,0.00010899,2]
[333254643,1721989833918,-198.9130726,0.00010899,2]
[333254644,1721989833927,-167.29469847,0.00010899,2]
[333254645,1721989833936,-842.2073,0.000109,2]
[333254646,1721989833945,-3693.2628013,0.000109,2]
[333254647,1721989833955,-6203.414,0.000109,2]
[333254648,1721989833964,-383.80295565,0.000109,2]
[333254649,1721989833973,-500.0,0.000109,2]
[333254650,1721989833983,-365.34276033,0.000109,2]
[333254651,1721989833993,-335.64873334,0.000109,2]
[333254652,1721989834002,-198.9130726,0.000109,2]
[333254653,1721989834012,-152.89544456,0.000109,2]
[333254654,1721989834021,-167.29469847,0.000109,2]
[333254655,1721989834034,-150.0,0.00010901,2]
[333254656,1721989834270,-220.81,0.00010904,3]
[333254657,1721989834281,-150.0,0.00010907,2]
[333254658,1721989834290,-150.0,0.00010907,2]
[333254659,1721989834304,-150.0,0.00010908,2]
[333254660,1721989834314,-150.0,0.00010909,2]
[333254661,1721989834323,-150.0,0.00010921,2]
[333254662,1721989834332,-150.0,0.00010922,2]
[333254663,1721989834343,-150.0,0.00010927,2]
[333254664,1721989834352,-150.0,0.00010929,2]
[333254665,1721989834362,-150.0,0.0001093,2]
[333254666,1721989834372,-150.0,0.00010955,2]
[333254667,1721989834384,-275.26042723,0.00010958,2]
[333254668,1721989834394,-500.0,0.00010958,2]
[333254669,1721989834404,-293.9826,0.00010958,2]
[333254670,1721989834413,-500.0,0.00010958,2]
[333254671,1721989834423,-500.0,0.00010958,2]
[333254672,1721989834432,-500.0,0.00010958,2]
[333254673,1721989834442,-500.0,0.00010958,2]
[333254674,1721989834452,-500.0,0.00010958,2]
[333254675,1721989834462,-500.0,0.00010958,2]
[333254676,1721989834472,-500.0,0.00010958,2]
[333254677,1721989834481,-366.1916933,0.00010958,2]
[333254678,1721989834493,-362.12909103,0.00010958,2]
[333254679,1721989834502,-514.63510911,0.00010958,2]
[333254680,1721989834512,-504.74609419,0.00010958,2]
[333254681,1721989834522,-500.0,0.00010958,2]
[333254682,1721989834531,-150.0,0.00010958,2]
[333254683,1721989834540,-266.64095994,0.00010958,2]
[333254684,1721989834550,-281.43745929,0.00010958,2]
[333254685,1721989834559,-500.0,0.00010958,2]
[333254686,1721989834569,-500.0,0.00010958,2]
[333254687,1721989834579,-200.0,0.00010959,2]
[333254688,1721989834589,-150.0,0.0001096,2]
[333254689,1721989834599,-150.0,0.0001096,2]
[333254690,1721989834609,-150.0,0.00010965,2]
[333254691,1721989834620,-3333.83500892,0.00010976,2]
[333254692,1721989834630,-150.0,0.00010976,2]
[333254693,1721989834640,-150.0,0.00010983,2]
[333254694,1721989834650,-150.0,0.00010986,2]
[333254695,1721989834661,-150.0,0.00010987,2]
[333254696,1721989834671,-217.4,0.0001099,2]
[333254697,1721989834682,-150.0,0.00010991,2]
[333254698,1721989834693,-150.0,0.00010991,2]
[333254699,1721989834703,-150.0,0.00010997,2]
[333254700,1721989834713,-194.46755102,0.00010997,2]
[333254701,1721989834723,-156.52645422,0.00010999,2]
[333254702,1721989834732,-500.0,0.00010999,2]
[333254703,1721989834745,-500.0,0.00010999,2]
[333254704,1721989834755,-500.0,0.00010999,2]
[333254705,1721989834765,-500.0,0.00010999,2]
[333254706,1721989834776,-500.0,0.00010999,2]
[333254707,1721989834786,-500.0,0.00010999,2]
[333254708,1721989834796,-500.0,0.00010999,2]
[333254709,1721989834806,-500.0,0.00010999,2]
[333254710,1721989834817,-567.0759,0.00010999,2]
[333254711,1721989834827,-500.0,0.00010999,2]
[333254712,1721989834837,-500.0,0.00010999,2]
[333254713,1721989834846,-500.0,0.00010999,2]
[333254714,1721989834857,-500.0,0.00010999,2]
[333254715,1721989834867,-514.23791337,0.00010999,2]
[333254716,1721989834877,-420.0,0.00010999,2]
[333254717,1721989834888,-500.0,0.00010999,2]
[333254718,1721989834898,-500.0,0.00010999,2]
[333254719,1721989834909,-500.0,0.00010999,2]
[333254720,1721989834919,-410.30750586,0.00010999,2]
[333254721,1721989834928,-238641.09281947,0.00011,2]
[333254722,1721989834937,-200.0,0.00011,2]
[333254723,1721989834947,-309113.30030408,0.00011,2]
[333254724,1721989834980,-577.5783648,0.00011,2]
[333254725,1721989834993,-906.95142544,0.00011,2]
[333254726,1721989835004,-700.0,0.00011,2]
[333254727,1721989835015,-904.96532417,0.00011,2]
[333254728,1721989835025,-357.46371413,0.00011,2]
[333254729,1721989835036,-424.51363552,0.00011,2]
[333254730,1721989835049,-1347.9,0.00011,2]
[333254731,1721989835078,-11371.24402162,0.00011,2]
[333254732,1721989835130,-479.02536476,0.00011,2]
[333254733,1721989835141,-763.89982107,0.00011,2]
[333254738,1721989838410,-150.0,0.00010728,2]
[333254739,1721989838419,-150.0,0.00010732,2]
[333254740,1721989838429,-150.0,0.00010742,2]
[333254741,1721989838439,-150.0,0.00010743,2]
[333254742,1721989838449,-150.0,0.00010745,2]
[333254743,1721989838458,-150.0,0.00010745,2]
[333254744,1721989838467,-150.0,0.00010747,2]
[333254745,1721989838477,-150.0,0.00010748,2]
[333254746,1721989838486,-150.0,0.00010752,2]
[333254747,1721989838496,-150.0,0.00010764,2]
[333254748,1721989838505,-150.0,0.00010772,2]
[333254749,1721989838514,-150.0,0.00010778,2]
[333254750,1721989838523,-150.0,0.0001078,2]
[333254751,1721989838533,-150.0,0.00010794,2]
[333254752,1721989838543,-150.0,0.00010795,2]
[333254753,1721989838552,-150.0,0.00010795,2]
[333254754,1721989838563,-150.0,0.00010803,2]
[333254755,1721989838572,-94.17619719,0.00010812,2]
[333254756,1721989838583,-55.82380281,0.00010812,2]
[333254757,1721989838592,-150.0,0.00010818,2]
[333254758,1721989838601,-150.0,0.00010822,2]
[333254759,1721989838610,-0.90647519,0.00010825,2]
[333254760,1721989838623,-149.09352481,0.00010825,2]
[333254761,1721989838633,-150.0,0.00010833,2]
[333254762,1721989838643,-32.43326858,0.00010853,2]
[333254763,1721989838669,-117.56673142,0.00010853,2]
[333254764,1721989838679,-150.0,0.00010856,2]
[333254765,1721989838687,-150.0,0.00010857,2]
[333254766,1721989838696,-44.8891563,0.00010867,2]
[333254767,1721989838716,-105.1108437,0.00010867,2]
[333254768,1721989838726,-150.0,0.00010868,2]
[333254769,1721989838737,-150.0,0.00010875,2]
[333254770,1721989838747,-150.0,0.00010879,2]
[333254771,1721989838756,-150.0,0.00010888,2]
[333254772,1721989838765,-150.0,0.00010891,2]
[333254773,1721989838775,-150.0,0.00010894,2]
[333254774,1721989838784,-150.0,0.00010894,2]
[333254775,1721989838793,-150.0,0.00010897,2]
[333254776,1721989838802,-150.0,0.00010901,2]
[333254778,1721989838812,-150.0,0.00010911,2]
[333254780,1721989838821,-150.0,0.0001092,2]
[333254782,1721989838830,-150.0,0.00010924,2]
[333254783,1721989838840,-150.0,0.00010926,2]
[333254785,1721989838849,-150.0,0.00010937,2]
[333254787,1721989838858,-150.0,0.00010937,2]
[333254789,1721989838868,-150.0,0.00010947,2]
[333254791,1721989838877,-150.0,0.00010947,2]
[333254793,1721989838887,-150.0,0.0001095,2]
[333254795,1721989838896,-150.0,0.00010951,2]
[333254797,1721989838905,-150.0,0.00010956,2]
[333254799,1721989838914,-150.0,0.0001096,2]
[333254801,1721989838924,-150.0,0.0001097,2]
[333254803,1721989838933,-150.0,0.00010976,2]
[333254804,1721989838942,-150.0,0.00010977,2]
[333254807,1721989838953,-150.0,0.00010978,2]
[333254809,1721989838962,-150.0,0.00010982,2]
[333254811,1721989838972,-150.0,0.00010989,2]
[333254812,1721989838981,-156.786,0.0001099,2]
[333254831,1721989839187,-150.0,0.00010992,2]
[333254832,1721989839197,-171704.38565877,0.00011,2]
[333254833,1721989839206,-577022.49251969,0.00011,2]
[333254834,1721989839218,-15122.16734889,0.00011,2]
[333254835,1721989839267,-150.0,0.00010957,2]
[333254836,1721989839276,-150.0,0.0001097,2]
[333254837,1721989839286,-244.38170658,0.00011,2]
[333254838,1721989839298,-1264.43557993,0.00011,2]
[333254856,1721989840392,-150.0,0.00010726,2]
[333254857,1721989840402,-150.0,0.00010739,2]
[333254859,1721989840412,-150.0,0.00010742,2]
[333254860,1721989840421,-150.0,0.00010743,2]
[333254861,1721989840430,-150.0,0.00010765,2]
[333254862,1721989840439,-150.0,0.00010787,2]
[333254863,1721989840448,-150.0,0.00010799,2]
[333254864,1721989840458,-150.0,0.00010805,2]
[333254866,1721989840467,-150.0,0.00010807,2]
[333254867,1721989840477,-150.0,0.00010818,2]
[333254868,1721989840486,-150.0,0.00010829,2]
[333254869,1721989840497,-150.0,0.00010836,2]
[333254870,1721989840507,-150.0,0.00010846,2]
[333254871,1721989840516,-150.0,0.00010853,2]
[333254872,1721989840528,-150.0,0.00010856,2]
[333254873,1721989840538,-150.0,0.00010858,2]
[333254874,1721989840549,-150.0,0.00010862,2]
[333254875,1721989840558,-150.0,0.00010865,2]
[333254876,1721989840567,-170.81917243,0.00010876,2]
[333254877,1721989840576,-150.0,0.00010879,2]
[333254878,1721989840586,-150.0,0.00010883,2]
[333254879,1721989840595,-150.0,0.00010893,2]
[333254880,1721989840605,-150.0,0.00010895,2]
[333254881,1721989840614,-4.63114591,0.00010904,2]
[333254882,1721989840626,-145.36885409,0.00010904,2]
[333254883,1721989840635,-150.0,0.00010911,2]
[333254884,1721989840644,-150.0,0.00010945,2]
[333254885,1721989840653,-150.0,0.00010949,2]
[333254886,1721989840662,-150.0,0.0001095,2]
[333254887,1721989840673,-150.0,0.0001095,2]
[333254888,1721989840682,-150.0,0.00010965,2]
[333254889,1721989840691,-150.0,0.00010982,2]
[333254890,1721989840700,-773.04520336,0.00011,2]
[333254891,1721989841992,-150.0,0.00010887,2]
[333254892,1721989842002,-511.4021784,0.00011,2]
[333254893,1721989842118,-1822.09764027,0.00011,2]
[333254894,1721989842130,-3690.6666,0.00011,2]
[333254895,1721989842242,-2209.30261648,0.00011,2]
[333254896,1721989842255,-24437.1075661,0.00011,2]
[333254897,1721989842266,-30254.26133491,0.00011,2]
[333254898,1721989842277,-67325.5463715,0.00011,2]
[333254899,1721989842291,-654.35604562,0.00011,2]
[333254900,1721989842395,-352319.69631359,0.00011,2]
[333254912,1721989843454,-45912.34257846,0.00011,2]
[333254913,1721989843466,-325.0,0.00011,2]
[333254914,1721989843477,-823.57056827,0.00011,2]
[333254915,1721989843489,-329.70014336,0.00011,2]
[333254916,1721989843680,-574.42355092,0.00011,2]
[333254935,1721989846421,-19999.26449983,0.00011,2]
[333254946,1721989846509,-1123.4,0.00011,2]
[333254959,1721989846605,-1208.0,0.00011,2]
[333254961,1721989846617,-5910.65315546,0.00011,2]
[333254964,1721989846630,-500.0,0.00011,2]
[333254966,1721989846651,-504.47555672,0.00011,2]
[333255038,1721990352786,395.07,0.0001337,30]
[333255042,1721990643816,300.0,0.00018,120]
[333255064,1721990980969,827.71776252,0.00015,30]
[333255077,1721991031576,-286.93,8.219e-05,2]
[333255079,1721991031586,-250.0,9.864e-05,2]
[333255080,1721991031596,-82.72174307,9.945e-05,2]
[333255082,1721991031607,-917.27825693,9.945e-05,2]
[333255083,1721991031617,-1250.0,0.0001,2]
[333255085,1721991031627,-1417.20175722,0.0001007,2]
[333255087,1721991031636,-781.752449,0.00010386,2]
[333255088,1721991031646,-150.0,0.00010438,2]
[333255090,1721991031656,-173.3,0.00010442,2]
[333255091,1721991031666,-286.93,0.00010469,2]
[333255093,1721991031679,-150.0,0.000105,2]
[333255095,1721991031689,-399.59,0.000105,2]
[333255096,1721991031698,-499.99,0.00010699,2]
[333255098,1721991031708,-300.0,0.00010699,2]
[333255100,1721991031719,-357.22712344,0.000107,2]
[333255101,1721991031731,-951.15527656,0.000107,2]
[333255103,1721991031740,-3053.1,0.000107,2]
[333255105,1721991031751,-1861.19517631,0.000107,2]
[333255106,1721991031763,-1410.43087864,0.000107,2]
[333255107,1721991031775,-257.23433876,0.000107,2]
[333255108,1721991031785,-747.70566124,0.000107,2]
[333255109,1721991031796,-2496.12587009,0.000107,2]
[333255110,1721991031808,-1016.60107499,0.000107,2]
[333255111,1721991031819,-2748.05976961,0.000107,2]
[333255112,1721991031830,-567.12177962,0.000107,2]
[333255113,1721991031842,-6678.06297211,0.000107,2]
[333255114,1721991031853,-780.17247863,0.000107,2]
[333255115,1721991031863,-150.99,0.000107,2]
[333255116,1721991031872,-150.0,0.000107,2]
[333255117,1721991031881,-150.0,0.000107,2]
[333255118,1721991031890,-236.06456931,0.000107,2]
[333255119,1721991031899,-1270.15,0.000107,2]
[333255120,1721991031908,-1079.38,0.00010732,2]
[333255121,1721991031918,-150.0,0.00010733,2]
[333255122,1721991031927,-150.0,0.00010734,2]
[333255123,1721991031937,-150.0,0.00010735,2]
[333255124,1721991031947,-150.0,0.00010758,2]
[333255125,1721991031956,-150.0,0.00010761,2]
[333255126,1721991031965,-150.0,0.00010768,2]
[333255127,1721991031975,-189.3426764,0.0001078,2]
[333255128,1721991031984,-150.0,0.00010785,2]
[333255129,1721991031993,-150.0,0.00010787,2]
[333255130,1721991032003,-107.90037566,0.00010788,2]
[333255131,1721991032015,-42.09962434,0.00010788,2]
[333255132,1721991032024,-150.0,0.0001079,2]
[333255133,1721991032033,-150.0,0.00010792,2]
[333255134,1721991032042,-150.0,0.00010796,2]
[333255135,1721991032051,-150.0,0.00010799,2]
[333255136,1721991032060,-150.0,0.00010801,2]
[333255137,1721991032070,-150.0,0.00010812,2]
[333255138,1721991032079,-24.11704035,0.00010817,2]
[333255139,1721991032090,-125.88295965,0.00010817,2]
[333255140,1721991032099,-150.0,0.00010822,2]
[333255141,1721991032108,-150.0,0.00010824,2]
[333255142,1721991032117,-150.0,0.00010829,2]
[333255143,1721991032126,-150.0,0.00010836,2]
[333255144,1721991032135,-15.99814095,0.00010837,2]
[333255145,1721991032147,-134.00185905,0.00010837,2]
[333255146,1721991032156,-150.0,0.00010839,2]
[333255147,1721991032165,-150.0,0.00010839,2]
[333255148,1721991032174,-150.0,0.00010843,2]
[333255149,1721991032183,-150.0,0.00010845,2]
[333255150,1721991032192,-150.0,0.00010847,2]
[333255151,1721991032202,-150.0,0.00010854,2]
[333255152,1721991032211,-150.0,0.00010858,2]
[333255153,1721991032220,-150.0,0.00010874,2]
[333255154,1721991032229,-150.0,0.00010882,2]
[333255155,1721991032239,-150.0,0.00010884,2]
[333255156,1721991032248,-150.0,0.00010887,2]
[333255157,1721991032258,-150.0,0.00010887,2]
[333255158,1721991032267,-150.0,0.00010887,2]
[333255159,1721991032277,-1017.48071706,0.00010889,2]
[333255160,1721991032288,-150.0,0.00010892,2]
[333255161,1721991032298,-280.42225584,0.00010899,2]
[333255162,1721991032308,-280.42225575,0.00010899,2]
[333255163,1721991032319,-280.42225575,0.00010899,2]
[333255164,1721991032330,-280.42225575,0.00010899,2]
[333255165,1721991032339,-280.42225575,0.00010899,2]
[333255166,1721991032349,-280.42225575,0.000109,2]
[333255167,1721991032360,-280.42225575,0.000109,2]
[333255168,1721991032370,-158.93061051,0.000109,2]
[333255169,1721991032382,-672.3424,0.000109,2]
[333255170,1721991032402,-3406.03390733,0.000109,2]
[333255171,1721991032655,-784.34351086,0.000109,2]
[333255172,1721991032671,-2522.06617273,0.000109,2]
[333255173,1721991032686,-7384.92556584,0.000109,2]
[333255174,1721991032697,-635.92020912,0.000109,2]
[333255175,1721991032708,-3064.60664569,0.000109,2]
[333255176,1721991032722,-363.76455997,0.000109,2]
[333255177,1721991032733,-1299.333284,0.000109,2]
[333255178,1721991032745,-333.87141,0.000109,2]
[333255180,1721991037606,-15263.32477622,0.000109,2]
[333255181,1721991037617,-918.803945,0.000109,2]
[333255182,1721991037641,-2396.30781176,0.000109,2]
[333255183,1721991037652,-11264.4972609,0.000109,2]
[333255184,1721991037715,-1000.5713,0.000109,2]
[333255186,1721991039599,-329.94744348,0.000109,2]
[333255187,1721991039611,-1545.17189656,0.000109,2]
[333255188,1721991039623,-10924.52139956,0.000109,2]
[333255189,1721991039634,-6859.28479047,0.000109,2]
[333255190,1721991039643,-280.42225575,0.000109,2]
[333255191,1721991039653,-280.42225575,0.000109,2]
[333255192,1721991039663,-150.0,0.000109,2]
[333255193,1721991039676,-280.42225575,0.000109,2]
[333255194,1721991039685,-150.0,0.00010903,2]
[333255195,1721991039694,-156.786,0.00010927,2]
[333255196,1721991039703,-150.0,0.00010935,2]
[333255197,1721991039712,-150.0,0.0001094,2]
[333255198,1721991039722,-150.0,0.0001095,2]
[333255199,1721991039731,-845.29,0.00010958,2]
[333255200,1721991039741,-845.29,0.00010958,2]
[333255201,1721991039754,-500.0,0.00010958,2]
[333255202,1721991039763,-500.0,0.00010958,2]
[333255203,1721991039773,-500.0,0.00010958,2]
[333255204,1721991039783,-500.0,0.00010958,2]
[333255205,1721991039792,-500.0,0.00010958,2]
[333255206,1721991039801,-260.73749051,0.00010958,2]
[333255207,1721991039811,-333.98664,0.00010958,2]
[333255208,1721991039820,-200.0,0.00010959,2]
[333255209,1721991039829,-250.0,0.00010959,2]
[333255210,1721991039838,-187.25,0.00010959,2]
[333255211,1721991039848,-156.04,0.00010959,2]
[333255212,1721991039858,-156.04,0.00010959,2]
[333255213,1721991039868,-156.04,0.00010959,2]
[333255214,1721991039877,-150.0,0.00010959,2]
[333255215,1721991039886,-150.0,0.00010963,2]
[333255216,1721991039895,-150.0,0.00010964,2]
[333255217,1721991039904,-150.0,0.00010969,2]
[333255218,1721991039914,-150.0,0.00010984,2]
[333255219,1721991039925,-150.0,0.00010987,2]
[333255220,1721991039936,-5803.69143393,0.00010989,2]
[333255221,1721991039947,-211.40172643,0.00010999,2]
[333255222,1721991039957,-487.64432718,0.00010999,2]
[333255223,1721991039967,-845.29,0.00010999,2]
[333255224,1721991039976,-845.29,0.00010999,2]
[333255225,1721991039985,-845.29,0.00010999,2]
[333255227,1721991039994,-845.29,0.00010999,2]
[333255229,1721991040004,-845.29,0.00010999,2]
[333255231,1721991040013,-845.29,0.00010999,2]
[333255233,1721991040022,-845.29,0.00010999,2]
[333255235,1721991040033,-845.29,0.00010999,2]
[333255237,1721991040043,-845.29,0.00010999,2]
[333255239,1721991040053,-845.29,0.00010999,2]
[333255241,1721991040062,-845.29,0.00010999,2]
[333255243,1721991040072,-845.29,0.00010999,2]
[333255245,1721991040081,-845.29,0.00010999,2]
[333255247,1721991040090,-845.29,0.00010999,2]
[333255249,1721991040099,-845.29,0.00010999,2]
[333255252,1721991040109,-845.29,0.00010999,2]
[333255254,1721991040118,-845.29,0.00010999,2]
[333255257,1721991040127,-845.29,0.00010999,2]
[333255260,1721991040136,-845.29,0.00010999,2]
[333255261,1721991040146,-845.29,0.00010999,2]
[333255263,1721991040155,-845.29,0.00010999,2]
[333255264,1721991040163,-845.44,0.00010999,2]
[333255266,1721991040173,-500.0,0.00010999,2]
[333255267,1721991040183,-199.34953408,0.00010999,2]
[333255268,1721991040191,-500.0,0.00010999,2]
[333255269,1721991040201,-500.0,0.00010999,2]
[333255270,1721991040210,-500.0,0.00010999,2]
[333255271,1721991040219,-500.0,0.00010999,2]
[333255272,1721991040228,-500.0,0.00010999,2]
[333255273,1721991040237,-500.0,0.00010999,2]
[333255274,1721991040450,-500.0,0.00010999,2]
[333255275,1721991040459,-500.0,0.00010999,2]
[333255276,1721991040468,-500.0,0.00010999,2]
[333255277,1721991040478,-500.0,0.00010999,2]
[333255278,1721991040488,-500.0,0.00010999,2]
[333255279,1721991040497,-500.0,0.00010999,2]
[333255280,1721991040508,-500.0,0.00010999,2]
[333255281,1721991040518,-500.0,0.00010999,2]
[333255282,1721991040528,-500.0,0.00010999,2]
[333255283,1721991040537,-322.82863348,0.00010999,2]
[333255284,1721991040546,-35065.45106086,0.00011,2]
[333255285,1721991040572,-307.87833168,0.00011,2]
[333255286,1721991040595,-5473.41860485,0.00011,2]
[333255287,1721991040606,-949.05656527,0.00011,2]
[333255288,1721991040621,-1122.60943921,0.00011,2]
[333255289,1721991040632,-989.22878096,0.00011,2]
[333255290,1721991040643,-952.47687904,0.00011,2]
[333255291,1721991040658,-1405.63258024,0.00011,2]
[333255292,1721991040669,-101265.98247584,0.00011,2]
[333255293,1721991041633,362.14,0.0001337,30]
[333255308,1721991042669,-434.95536703,0.00011,2]
[333255309,1721991042684,-20317.27300687,0.00011,2]
[333255310,1721991042694,-2675.908,0.00011,2]
[333255311,1721991042704,-1227.75456663,0.00011,2]
[333255312,1721991042715,-287.41021646,0.00011,2]
[333255313,1721991042737,-380.29346492,0.00011,2]
[333255314,1721991042751,-69971.3479012,0.00011,2]
[333255315,1721991042787,-3822.67290238,0.00011,2]
[333255316,1721991042963,-3204.85325529,0.00011,2]
[333255317,1721991042974,-1347.12,0.00011,2]
[333255354,1721991046579,-3252.54000001,0.00011,2]
[333255356,1721991046591,-337.12,0.00011,2]
[333255357,1721991046603,-5755.3,0.00011,2]
[333255358,1721991046614,-304.08913222,0.00011,2]
[333255385,1721991682188,331.96,0.0001337,30]
[333255441,1721992231944,-258.23,8.219e-05,2]
[333255442,1721992231955,-296.0,9.68e-05,2]
[333255443,1721992231965,-800.0,9.896e-05,2]
[333255444,1721992231975,-296.0,9.96e-05,2]
[333255445,1721992231986,-1250.0,0.0001,2]
[333255446,1721992231996,-200.0,0.0001001,2]
[333255447,1721992232006,-296.0,0.0001024,2]
[333255448,1721992232016,-258.23,0.0001047,2]
[333255449,1721992232026,-296.0,0.0001052,2]
[333255450,1721992232036,-425.44,0.00010678,2]
[333255451,1721992232046,-150.0,0.00010678,2]
[333255452,1721992232056,-150.47406814,0.0001075,2]
[333255453,1721992232069,-150.0,0.0001075,2]
[333255454,1721992232079,-150.0,0.00010751,2]
[333255455,1721992232089,-150.0,0.00010752,2]
[333255456,1721992232099,-150.0,0.00010764,2]
[333255457,1721992232114,-189.3426764,0.0001078,2]
[333255458,1721992232134,-150.0,0.00010787,2]
[333255459,1721992232149,-150.0,0.00010792,2]
[333255460,1721992232158,-150.0,0.00010793,2]
[333255461,1721992232168,-150.0,0.00010799,2]
[333255462,1721992232177,-296.0,0.000108,2]
[333255463,1721992232189,-150.0,0.000108,2]
[333255464,1721992232199,-300.0,0.00010844,2]
[333255465,1721992232208,-150.0,0.00010845,2]
[333255466,1721992232218,-4012.983,0.00010845,2]
[333255467,1721992232227,-150.0,0.00010856,2]